Cogmind - Beta 9.4 @@@ ROGUE MODE // 2020.02.02 @ 21:55:30 Player: eldritch Result: Destroyed by as-16638 with Assembled Heavy Rifle Performance ------------- Evolutions (0) 0 Regions Visited (2) 400 Robots Destroyed (8) 40 Value Destroyed (44) 44 Prototype IDs (0) 0 Alien Tech Used (0) 0 Bonus (0) 0 TOTAL SCORE: 484 Bonus ------- None Cogmind --------- Core Integrity 0/250 Matter 187/300 Energy 100/100 System Corruption 0% Temperature Cool (346) Movement Core (850) Ox16 Location -10/Mines Parts ------- > --- POWER (1) -------- (None) > --- PROPULSION (2) --- (None) > --- UTILITY (2) ------ Large Storage Unit High-capacity Storage Unit > --- WEAPON (2) ------- Light Cannon > --- INVENTORY (18) --- Light Angular Momentum Engine Aluminum Leg Carbon-fiber Leg Large Storage Unit Signal Interpreter Targeting Computer Transmission Jammer Improved Utility Shielding Hardened Medium Armor Plating System Shield Electrolaser Assault Rifle Minigun Great Maul Mining Claw Peak State ------------ > --- POWER ------------ Light Ion Engine > --- PROPULSION ------- Wheel Wheel > --- UTILITY ---------- Large Storage Unit High-capacity Storage Unit > --- WEAPON ----------- EM Pulse Gun Flak Cannon > --- INVENTORY -------- Light Angular Momentum Engine Light Treads Aluminum Leg Carbon-fiber Leg Large Storage Unit Signal Interpreter Targeting Computer Transmission Jammer Improved Utility Shielding Hardened Medium Armor Plating System Shield Electrolaser Assault Rifle Minigun Light Cannon Great Maul Mining Claw [Rating: 12] Favorites ----------- Power Light Ion Engine Engine Light Ion Engine Propulsion Wheel Treads Light Treads Leg Aluminum Leg Wheel Wheel Utility Large Storage Unit Storage Large Storage Unit Weapon EM Pulse Gun Energy Gun EM Pulse Gun Ballistic Gun Assault Rifle Ballistic Cannon Flak Cannon Launcher Grenade Launcher Slashing Weapon Mining Claw Build | -11 -10 -10 ------- Run | Scr Mat Min Slots Evolved . | . . . Power . | . . . Propulsion . | . . . Utility . | . . . Weapon . | . . . Parts Attached 11 | . 5 6 Power . | . . . Engine . | . . . Core . | . . . Reactor . | . . . Propulsion 3 | . 2 1 Treads 1 | . . 1 Leg . | . . . Wheel 2 | . 2 . Hover . | . . . Flight . | . . . Utility 3 | . 2 1 Device . | . . . Storage 3 | . 2 1 Processor . | . . . Hackware . | . . . Protection . | . . . Artifact . | . . . Weapon 5 | . 1 4 Energy Gun . | . . . Energy Cannon . | . . . Ballistic Gun 1 | . . 1 Ballistic Cannon 2 | . . 2 Launcher 1 | . . 1 Special Weapon . | . . . Impact Weapon . | . . . Slashing Weapon 1 | . 1 . Piercing Weapon . | . . . Special Melee Weapon . | . . . Unidentified Prototypes . | . . . Parts Lost 7 | . . 7 Power 1 | . . 1 Propulsion 3 | . . 3 Utility . | . . . Weapon 3 | . . 3 Highest Loss Streak 7 | . . 7 Average Slot Usage (%) 95 | . 97 93 Engine 13 | . 14 12 Leg 2 | . 4 . Wheel 24 | . 23 25 Storage 26 | . 25 28 Energy Gun 13 | . 14 12 Ballistic Gun 8 | . 12 3 Slashing Weapon 3 | . 1 6 Naked Turns . | . . . Heaviest Build 56 | 11 39 56 Greatest Support 20 | 20 20 20 Greatest Overweight (x) 2 | . 1 2 Average Overweight (x) 1 | . . 1 Largest Inventory Capacity 18 | . 16 18 Average Capacity 15 | . 14 17 Most Carried 18 | . 10 18 Average Carried 11 | . 7 16 Final Capacity 18 | 6 16 18 Final Carried 15 | 6 10 15 Class Distribution -------------------- 100% | Mutant Dominant Class ---------------- Mutant | -10/Materials Mutant | -10/Mines Resources | -11 -10 -10 ----------- Run | Scr Mat Min Matter Collected 291 | 200 46 45 Remotely . | . . . Salvage Created 201 | . 132 69 Parts 2 | . 2 . Haulers Intercepted . | . . . Recyclers Shooed . | . . . Parts Field Recycled . | . . . Retrieved Matter . | . . . Parts Self-Destructed . | . . . Prevented . | . . . Kills | -11 -10 -10 ------- Run | Scr Mat Min Combat Hostiles Destroyed 4 | . . 4 Cannons 3 | . . 3 AOE 1 | . . 1 Classes Destroyed 3 | . 2 1 Recycler 2 | . 1 1 Watcher 2 | . 2 . Assembled 4 | . . 4 Best Kill Streak 3 | . 1 3 Combat Bots Only 3 | . . 3 Max Kills in Single Turn 1 | . 1 1 Gunslinging . | . . . Exploded 1 | . . 1 Melee . | . . . Uniques/NPCs Destroyed . | . . . Combat | -11 -10 -10 -------- Run | Scr Mat Min Damage Taken 972 | . . 972 Core 250 | . . 250 Absorbed by Shields . | . . . Core Remaining (%) 100 | 100 . . Volleys Fired 25 | . 9 16 Largest 2 | . 2 2 Hottest 84 | . 60 84 Shots Fired 44 | . 18 26 Gun 28 | . 18 10 Cannon 14 | . . 14 Launcher 2 | . . 2 Special . | . . . Kinetic 25 | . 9 16 Thermal . | . . . Explosive 2 | . . 2 Electromagnetic 17 | . 9 8 Robot Hit Streak 8 | . 3 8 Robot Miss Streak 7 | . 4 7 Penetration Max . | . . . Secondary Targets . | . . . Shots Hit Robots 28 | . 10 18 Core Hits 18 | . 5 13 Critical Hits . | . . . Critical Kills . | . . . Critical Parts Destroyed . | . . . Melee Attacks 6 | . 6 . Impact . | . . . Slashing 6 | . 6 . Piercing . | . . . Sneak Attacks 1 | . 1 . Combat Hostiles . | . . . Follow-up Attacks . | . . . Damage Inflicted 602 | . 248 354 Guns 251 | . 150 101 Cannons 207 | . . 207 Explosions 46 | . . 46 Melee 98 | . 98 . Ramming . | . . . Kinetic 265 | . 34 231 Thermal . | . . . Explosive 46 | . . 46 Electromagnetic 193 | . 116 77 Impact . | . . . Slashing 98 | . 98 . Piercing . | . . . Highest Corruption . | . . . Average Corruption . | . . . Corruption Purged . | . . . Overload Shots . | . . . Overflow Damage 21 | . 16 5 Projectiles 5 | . . 5 Explosions . | . . . Melee 16 | . 16 . Knockbacks 8 | . . 8 Impact . | . . . Kinetic 6 | . . 6 Secondary 2 | . . 2 Self-Inflicted Damage 69 | . . 69 Shots 2 | . . 2 Rammed . | . . . Targets Rammed . | . . . Kicked . | . . . Crushed . | . . . Highest Temperature 346 | . 20 346 Average Temperature 108 | . 20 130 Received Heat Transfer 420 | . . 420 Effects 1 | . . 1 Energy Bleed 1 | . . 1 Siege Activations . | . . . Robots Corrupted . | . . . Combat Hostiles . | . . . Parts Fried . | . . . Impact Corruptions . | . . . Robots Melted . | . . . Combat Hostiles . | . . . Parts Melted . | . . . Heat Transferred . | . . . Parts Sabotaged . | . . . Parts Stolen . | . . . Parts Stripped . | . . . Power Chain Reactions . | . . . Missiles Intercepted . | . . . Alert | -11 -10 -10 ------- Run | Scr Mat Min Peak Influence 99 | . 99 43 Average Influence 45 | . 53 36 Maximum Alert Level . | . . . Low Security (%) 100 | . 100 100 Level 1 . | . . . Level 2 . | . . . Level 3 . | . . . Level 4 . | . . . Level 5 . | . . . High Security . | . . . Max Security . | . . . Squads Dispatched 1 | . . 1 Investigation 1 | . . 1 Extermination . | . . . Reinforcement . | . . . Assault . | . . . Garrison . | . . . Intercept . | . . . Construction Impeded . | . . . Haulers Reinforced . | . . . Stealth | -11 -10 -10 --------- Run | Scr Mat Min Distress Signals 1 | . 1 . Communications Jammed . | . . . Distress Signals . | . . . Times Spotted 20 | . 5 15 Peak Tracking Total 20 | . 2 20 Tactical Retreats 3 | . 1 2 Traps | -11 -10 -10 ------- Run | Scr Mat Min Traps Triggered . | . . . Indirectly . | . . . Trap Hack Attempts . | . . . Triggered . | . . . Disarmed . | . . . Reprogrammed . | . . . Reused . | . . . Traps Extracted . | . . . Installed . | . . . Triggered . | . . . Machines | -11 -10 -10 ---------- Run | Scr Mat Min Machines Disabled 1 | . 1 . Max in Single Turn 1 | . 1 . Machines Sabotaged . | . . . Garrisons Compromised . | . . . Overloaded Fab Kills . | . . . Fab Network Shutdowns . | . . . Hacking | -11 -10 -10 --------- Run | Scr Mat Min Machines Accessed 4 | . 3 1 Terminals 3 | . 3 . Fabricators . | . . . Repair Stations . | . . . Recycling Units . | . . . Scanalyzers . | . . . Garrison Access . | . . . Total Hacks 10 | . 9 1 Successful 7 | . 6 1 Failed 3 | . 3 . Catastrophic . | . . . Database Lockouts . | . . . Manual 9 | . 9 . Terminals 9 | . 9 . Fabricators . | . . . Repair Stations . | . . . Recycling Units . | . . . Scanalyzers . | . . . Garrison Access . | . . . Terminal Hacks 3 | . 2 1 Open Door 1 | . . 1 Branch Access Points 1 | . 1 . Locate Traps 1 | . 1 . Fabricator Hacks . | . . . Repair Station Hacks . | . . . Recycling Unit Hacks . | . . . Scanalyzer . | . . . Garrison Access Hacks . | . . . Unauthorized Hacks 11 | . 11 . Terminals 4 | . 4 . Track 2 | . 2 . Botnet 2 | . 2 . Fabricators . | . . . Repair Stations . | . . . Recycling Units . | . . . Scanalyzers . | . . . Garrison Access . | . . . Data Cores Recovered . | . . . Used . | . . . Hacking Detections 3 | . 3 . Full Trace Events . | . . . Feedback Events . | . . . Feedback Blocked . | . . . Robot Schematics Acquired . | . . . Robots Built . | . . . Matter . | . . . Time . | . . . Total Robot Build Rating . | . . . Part Schematics Acquired . | . . . Parts Built . | . . . Matter . | . . . Time . | . . . Total Part Build Rating . | . . . Parts Repaired . | . . . Time . | . . . Parts Recycled . | . . . Recycled Matter . | . . . Retrieved Matter . | . . . Retrieved Components . | . . . Parts Scanalyzed . | . . . Part Schematics Acquired . | . . . Parts Damaged . | . . . Bothacking | -11 -10 -10 ------------ Run | Scr Mat Min Used RIF Installer . | . . . Robots Hacked . | . . . Non-combat . | . . . Combat . | . . . Robot Hacks Applied . | . . . Relay Couplers Released . | . . . Robots Rewired . | . . . Allies Hacked . | . . . Hacks Repelled . | . . . Allies | -11 -10 -10 -------- Run | Scr Mat Min Total Allies . | . . . Largest Group . | . . . Highest-Rated Group . | . . . Highest-Rated Ally . | . . . Total Orders . | . . . Ally Attacks . | . . . Total Damage . | . . . Kills . | . . . Allies Corrupted . | . . . Allies Melted . | . . . Intel | -11 -10 -10 ------- Run | Scr Mat Min Robot Analysis Total . | . . . Derelict Logs Recovered 1 | . . 1 Drone Launches . | . . . Drone Recoveries . | . . . Exploration | -11 -10 -10 ------------- Run | Scr Mat Min Turns Passed 589 | . 339 250 Spaces Moved 417 | 1 248 168 Core . | . . . Treads . | . . . Legs 52 | 1 51 . Wheels 365 | . 197 168 Hover . | . . . Flight . | . . . Fastest Speed 90 | 120 90 90 Average Speed 96 | 120 96 97 Slowest Speed 150 | 120 150 100 Overloaded Moves . | . . . Propulsion Burnouts . | . . . Robots Hopped . | . . . Cave-ins Triggered . | . . . Exploration Rate (%) 23 | 2 44 25 Regions Visited 2 Branch Regions 1 Pre-discovered Areas . | . . . Known Exits Taken 1 | . 1 . Unknown Exits Taken 1 | 1 . . Scrap Searched 1 | . . 1 Spaces Dug 1 | . 1 . Terrain Destroyed 22 | . 1 21 Melee 1 | . 1 . Projectile . | . . . AOE 21 | . . 21 Actions | -11 -10 -10 --------- Run | Scr Mat Min Total 544 | . 316 228 Wait 66 | . 42 24 Move 415 | . 247 168 Hop . | . . . Pick Up 16 | . 5 11 Fast Attach 2 | . 2 . Attach 3 | . . 3 Detach . | . . . Swap 6 | . 3 3 Drop 5 | . 2 3 Fire 25 | . 9 16 Melee 6 | . 6 . Ram . | . . . Kick . | . . . Crush . | . . . Escape Stasis . | . . . Rewire . | . . . Trap . | . . . Miscellaneous . | . . . Route ------- -11/Scrapyard -10/Materials -10/Mines History --------- Turn | Location | Event 1 | -11/Scrapyard | Discovered new exit (range 0) 1 | -11/Scrapyard | Entered Materials 207 | -10/Materials | Discovered new exit (range 12) 263 | -10/Materials | Identified exit to Mines 322 | -10/Materials | Build established: Mutant 340 | -10/Materials | Entered Mines 371 | -10/Mines | Met a Derelict shopkeep closing up shop 374 | -10/Mines | Learned location of 2 exits from Materials 524 | -10/Mines | Assembled infested the area 529 | -10/Mines | Assisted by a Guerilla fighting off Assembled 579 | -10/Mines | Core integrity fell below 50% 589 | -10/Mines | Core integrity fell below 20% 590 | -10/Mines | Destroyed by as-16638 with Assembled Heavy Rifle Last Messages --------------- 00538_ The unstable cave ceiling collapses. 00539_ K-01 Serf collects debris. 00562_ Wheel destroyed. 00568_ Lgt. Ion Engine destroyed. 00569_ EM Pulse Gun destroyed. 00569_ as-69464 destroyed. 00573_ as-61367 destroyed. 00575_ as-92620 knocked back. 00575_ as-16959 knocked back. 00578_ as-16959 destroyed. 00579_ Lgt. Treads destroyed. 00580_ Wheel destroyed. 00581_ as-76622 knocked back. 00583_ Overheating: Energy bleed (-19). 00583_ as-38367 destroyed. 00584_ Destroyed Asb. F-torch. 00584_ as-92620 knocked back. 00584_ as-62718 knocked back. 00587_ as-76622 destroyed. 00588_ Flak Cannon destroyed. Map ----- +----------------------------------------------------+ | | | ?????????????????????????????????????????????????? | | ?????????????????????????????????????????????????? | | ?????????????????????????????????????????????????? | | ?????????????????????????????????????????????????? | | ?????????????????????????????????????????????????? | | ?????????????????????????????????????????????????? | | ?????????????????????????????????????????????????? | | ?????????????????????????????????????????????????? | | ?????????????????????????????????????????????????? | | ????????????????????????????????????????????? ???? | | ????????????????????????????????????????????? ???? | | ??????????????????????? ????????????????????? ???? | | ??????????????????????? ????????????????????? ???? | | ??????????????????????? ????????????????????# ???? | | ??????????????????????? ???????????????????? ???? | | ???????????????????????# ??????????????????# ???? | | ???????????????????????# ?????????????????? ???? | | ??????????????????????## ?????????????????? ???? | | ??????????????????????# ?????????????????? ???? | | ??????????????????????# ?????????????????? ! ???? | | ?????????????????????## ??????????????????#%#???? | | ???????????????????### ??????????????????# #???? | | ??????????????????## ##????????????????# #???? | | ????????????????### #????????????????# #???? | | ???????????????## @#????????????????# #???? | | ???????????????# % #????????????????# #???? | | ???????????????# a #????????????##### ##??? | | ???????????????## %#????????????# #??? | | ????????????????# a % ##?####??????# #??? | | ????????????????# a ### ######## #??? | | ???????????????# aa #??? | | ?????????????# ###### # #??? | | ????????????# ##????## ####??? | | ???????????? a ##??????##* #?????? | | ???????????? ### ##????????# !#?????? | | ???????????? ???## #??######## ###???? | | ??????????????????# ##??# #???? | | ?????????????????# ###### #???? | | ???????????????? ## ###" ### #???? | | ???????????????""" #?## #?#" #X #???? | | ?????????????????" ???## ##?#" #???? | | ?????????????????"?????###???#" #???? | | ?????????????????????????????#"[ # #???? | | ?????????????????????????????#" ### #???? | | ?????????????????????????????##### #???? | | ?????????????????????????????????# #???? | | ?????????????????????????????????# #???? | | ?????????????????????????????????# #???? | | ?????????????????????????????????# #???? | +----------------------------------------------------+ Best States ------------- Heat Dissipation 25 Energy Generation 10 Energy Capacity 125 Matter Stores 300 Matter Capacity 300 Sight Range 16 Terrain Scan Density 10 Evasion (%) 42 Recoil Reduction 1 Item Schematics ----------------- None Robot Schematics ------------------ None Fabricated ------------ Nothing Alien Tech Used ----------------- None Achievements -------------- None Challenges ------------ None Game ------ Seed HeatMyomerStorage Manual? 0 Play Time 00:08:13 Cumulative 209.7 hours Start 2020.02.02 @ 21:48:15 End 2020.02.02 @ 21:55:30 Sessions 1 Manual Loads 0 Difficulty Rogue Special Mode None Game No. 477 Rogue 477 Adventurer 0 Explorer 0 Win Type - Total 4 Types 3/0/0/1/0/0/0 Lore% 63 Gallery% 66 Achievement% 56 Wizard Run 0 Options --------- ASCII 0 Keyboard 0 Movement Arrows Keybinds 0 Fullscreen 1 Font 18/SmallcapsGlow Map View 76x50 Tactical HUD 1 Map Filters NONE Filters NONE Steam 1 RUN: 968c92bc-e35d-464c-8198-23a3fb5e6002